bitfinex/quotes_SOLUSD_20240615
["timestamp","ask_amount","ask_price","bid_price","bid_amount"]
[1718473366045,8.7094,145.47,145.38,0.17]
[1718473366046,6.1659,145.47,145.39,0.51]
[1718473366560,15.6684,145.46,145.39,0.51]
[1718473366952,15.6684,145.46,145.4,0.17]
[1718473367992,15.6684,145.46,145.39,0.17]
[1718473368176,15.6684,145.46,145.39,0.34]
[1718473370075,18.212,145.46,145.38,20.0]
[1718473370262,18.212,145.46,145.37,0.17]
[1718473370451,30.9304,145.46,145.36,20.34]
[1718473370655,41.1053,145.46,145.36,20.34]
[1718473370954,2.5438,145.45,145.36,20.34]
[1718473371374,2.544,145.44,145.33,278.12253483]
[1718473371760,7.632,145.44,145.33,278.12253483]
[1718473371959,2.544,145.44,145.33,278.12253483]
[1718473372265,7.6317,145.45,145.33,278.12253483]
[1718473372471,7.6317,145.45,145.34,0.34]
[1718473372673,7.6317,145.45,145.35,0.51]
[1718473373858,15.2632,145.45,145.35,0.51]
[1718473374767,2.544,145.44,145.35,0.51]
[1718473375574,25.4385,145.45,145.35,0.51]
[1718473375992,2.544,145.44,145.35,0.51]
[1718473376854,6.1659,145.43,145.35,0.51]
[1718473377050,15.6684,145.42,145.35,0.51]
[1718473379088,15.6684,145.42,145.35,0.34]
[1718473380164,15.6684,145.42,145.34,20.17]
[1718473380561,15.6684,145.42,145.34,0.17]
[1718473380772,15.6684,145.42,145.34,0.51]
[1718473381792,15.6684,145.42,145.35,0.17]
[1718473382581,15.6684,145.42,145.35,0.51]
[1718473382780,15.6684,145.42,145.36,0.17]
[1718473382966,15.6684,145.42,145.36,0.51]
[1718473389408,6.1659,145.43,145.37,0.17]
[1718473389610,6.1659,145.43,145.37,0.51]
[1718473389996,6.1659,145.43,145.38,0.17]
[1718473390417,6.1659,145.43,145.38,0.51]
[1718473391230,15.9808,145.45,145.39,0.17]
[1718473391611,15.9808,145.45,145.39,0.51]
[1718473392532,6.2914,145.47,145.4,0.17]
[1718473392824,6.2914,145.47,145.41,0.17]
[1718473393022,6.2914,145.47,145.41,0.51]
[1718473396122,6.2914,145.47,145.42,0.17]
[1718473396325,15.9808,145.48,145.43,0.17]
[1718473396703,15.9808,145.48,145.43,0.51]
[1718473397441,15.9808,145.48,145.43,0.34]
[1718473404843,0.850503,145.49,145.43,0.34]
[1718473405639,0.850503,145.49,145.44,0.17]
[1718473405866,0.850503,145.49,145.44,0.68]
[1718473406647,0.850503,145.49,145.44,17.3417]
[1718473406818,0.850503,145.49,145.46,0.17]
[1718473407021,0.850503,145.49,145.46,0.68]
[1718473407846,0.850503,145.49,145.46,0.51]
[1718473408842,5.936803,145.49,145.42,8.38134663]
[1718473409041,3.393703,145.49,145.41,16.6617]
[1718473409242,16.109403,145.49,145.39,6.2515]
[1718473409419,0.850503,145.49,145.39,6.2515]
[1718473409619,3.393603,145.49,145.39,6.2515]
[1718473410046,3.393603,145.49,145.4,20.0]
[1718473410221,0.850503,145.49,145.41,0.17]
[1718473410545,0.850503,145.49,145.44,5.56]
[1718473410736,0.850503,145.49,145.45,5.56]
[1718473412514,0.850503,145.49,145.46,5.56]
[1718473413013,0.850503,145.49,145.45,5.56]
[1718473420571,0.850503,145.49,145.46,5.56]
[1718473422365,0.850503,145.49,145.41,0.68]
[1718473422656,3.393603,145.49,145.41,0.68]
[1718473422861,3.393603,145.49,145.44,5.56]
[1718473423361,0.850503,145.49,145.44,5.56]
[1718473425170,0.850503,145.49,145.45,5.56]
[1718473425968,0.850503,145.49,145.46,5.56]
[1718473426882,0.850503,145.49,145.47,5.56]
[1718473427189,0.850503,145.49,145.48,5.56]
[1718473428171,0.850503,145.49,145.47,5.56]
[1718473439201,0.850503,145.49,145.43,0.17]
[1718473439507,0.850503,145.49,145.47,5.56]
[1718473442499,0.850503,145.49,145.48,5.56]
[1718473447433,0.850503,145.49,145.48,5.73]
[1718473447604,0.850503,145.49,145.48,6.24]
[1718473449299,0.850503,145.49,145.48,6.07]
[1718473449501,0.850503,145.49,145.48,5.9]
[1718473452827,0.850503,145.49,145.48,6.24]
[1718473455829,0.850503,145.49,145.48,5.56]
[1718473457225,0.850503,145.49,145.48,5.73]
[1718473458519,0.850503,145.49,145.48,6.24]
[1718473460033,0.850503,145.49,145.48,6.07]
[1718473460336,0.850503,145.49,145.48,5.9]
[1718473460506,0.850503,145.49,145.48,5.73]
[1718473463746,0.850503,145.49,145.48,5.9]
[1718473463925,0.850503,145.49,145.48,6.24]
[1718473464445,0.850503,145.49,145.48,0.68]
[1718473464943,0.850503,145.49,145.48,6.07]
[1718473465134,0.850503,145.49,145.48,0.17]
[1718473465337,0.850503,145.49,145.48,5.73]
[1718473467047,0.850503,145.49,145.48,0.17]
[1718473467462,0.850503,145.49,145.47,0.68]
[1718473470652,0.850503,145.49,145.47,0.34]
[1718473470960,0.850503,145.49,145.47,5.56]
[1718473472762,0.850503,145.49,145.48,5.56]
[1718473473234,0.850503,145.49,145.44,0.17]
[1718473473559,0.850503,145.49,145.48,5.56]
[1718473474251,0.350503,145.49,145.48,5.56]
[1718473477834,0.350503,145.49,145.44,0.68]
[1718473478034,0.350503,145.49,145.46,5.56]
[1718473479239,0.350503,145.49,145.47,5.56]
[1718473481394,0.350503,145.49,145.43,25.61932669]
[1718473481576,0.350503,145.49,145.46,5.56]
[1718473483060,0.350503,145.49,145.43,5.61932669]
[1718473483256,0.350503,145.49,145.46,5.56]
[1718473484174,0.350503,145.49,145.42,0.34]
[1718473484483,6.352003,145.49,145.41,20.68]
[1718473484655,6.352003,145.49,145.44,5.56]
[1718473485368,6.352003,145.49,145.41,20.68]
[1718473485693,6.352003,145.49,145.44,5.56]
[1718473486985,11.912003,145.49,145.44,5.56]
[1718473487689,6.352003,145.49,145.44,5.56]
[1718473488391,6.352003,145.49,145.45,5.56]
[1718473489694,2.544,145.44,145.36,21.7511]
[1718473489875,2.5435,145.47,145.41,5.56]
[1718473490196,15.703,145.48,145.43,5.56]
[1718473490501,21.263,145.48,145.43,5.56]
[1718473490665,5.56,145.47,145.41,5.56]
[1718473490865,5.56,145.47,145.36,27.33177853]
[1718473491193,41.1364,145.48,145.41,5.56]
[1718473491496,5.56,145.46,145.36,27.33177853]
[1718473491669,5.56,145.46,145.41,5.56]
[1718473491869,5.56,145.45,145.36,27.33177853]
[1718473492082,12.1712,145.45,145.37,20.0]
[1718473492286,6.6112,145.45,145.4,5.56]
[1718473492483,15.703,145.44,145.4,5.56]
[1718473492696,6.6112,145.45,145.42,5.56]
[1718473499313,6.6112,145.45,145.38,0.17]
[1718473499516,6.6112,145.45,145.42,5.56]
[1718473500510,6.99450239,145.49,145.44,5.56]
[1718473500726,6.99450239,145.49,145.41,0.51]
[1718473500727,0.38330239,145.49,145.48,5.56]
[1718473501899,0.38330239,145.49,145.45,0.17]
[1718473502110,0.38330239,145.49,145.48,5.56]
[1718473502327,0.38330239,145.49,145.45,0.17]
[1718473502626,0.38330239,145.49,145.4,0.17]
[1718473502798,6.99450239,145.49,145.44,5.56]
[1718473503119,6.99450239,145.49,145.45,5.56]
[1718473503298,8.00889348,145.49,145.45,5.56]
[1718473504921,5.56,145.46,145.35,15.4508]
[1718473505098,5.56,145.44,145.38,5.56]
[1718473505302,5.56,145.44,145.33,6.2798]
[1718473505722,5.56,145.44,145.38,5.56]
[1718473506112,5.56,145.44,145.33,6.2798]
[1718473506324,5.56,145.44,145.38,5.56]
[1718473507030,5.56,145.44,145.35,0.17]
[1718473507229,5.56,145.44,145.34,20.0]
[1718473507431,5.56,145.44,145.38,5.56]
[1718473508605,6.5863,145.43,145.33,6.2798]
[1718473508810,6.5863,145.43,145.4,5.56]
[1718473510235,6.5863,145.43,145.34,0.17]
[1718473510236,15.8723,145.42,145.34,0.17]
[1718473510447,15.8723,145.42,145.37,5.56]
[1718473510619,15.8723,145.42,145.33,20.68]
[1718473510945,15.8723,145.42,145.38,5.56]
[1718473511239,15.8723,145.42,145.33,20.68]
[1718473511742,2.5445,145.41,145.33,0.51]
[1718473511910,2.5445,145.41,145.36,5.56]
[1718473511911,5.56,145.41,145.36,5.56]
[1718473512348,5.56,145.41,145.32,22.24]
[1718473512518,5.56,145.41,145.36,5.56]
[1718473513423,5.56,145.41,145.32,22.24]
[1718473513424,5.56,145.4,145.35,5.56]
[1718473514225,5.56,145.4,145.34,5.56]
[1718473515421,21.4323,145.38,145.28,23.36652996]
[1718473515625,21.4323,145.38,145.32,5.56]
[1718473516443,21.4323,145.38,145.33,5.56]
[1718473516752,15.8723,145.38,145.33,5.56]
[1718473518835,15.8723,145.38,145.25,49.38968263]
[1718473518836,23.9773,145.38,145.26,0.17]
[1718473519137,29.0674,145.38,145.26,20.68]
[1718473519344,29.0674,145.38,145.32,5.56]
[1718473519643,23.9773,145.38,145.32,5.56]
[1718473519852,23.9773,145.38,145.26,20.68]
[1718473519853,5.56,145.37,145.26,20.68]
[1718473520056,5.56,145.37,145.31,5.56]
[1718473520836,5.56,145.37,145.26,20.68]
[1718473521038,5.56,145.37,145.31,5.56]
[1718473522134,15.8723,145.38,145.31,5.56]
[1718473522347,15.8723,145.38,145.34,5.56]
[1718473522726,15.8723,145.38,145.35,5.56]
[1718473523572,15.8723,145.38,145.34,5.56]
[1718473523928,15.8723,145.38,145.33,5.56]
[1718473525070,15.8723,145.38,145.3,0.17]
[1718473525260,15.8723,145.38,145.33,5.56]
[1718473525432,15.8723,145.38,145.3,0.17]
[1718473525790,15.8723,145.38,145.33,5.56]
[1718473526558,15.8723,145.38,145.34,5.56]
[1718473528567,15.8723,145.38,145.3,0.34]
[1718473528769,15.8723,145.38,145.34,5.56]
[1718473530782,15.8723,145.38,145.35,5.56]
[1718473531073,15.8723,145.38,145.33,0.17]
[1718473531296,15.569,145.42,145.37,5.56]
[1718473531444,15.569,145.42,145.4,5.56]
[1718473532556,15.569,145.42,145.39,5.56]
[1718473532845,15.569,145.42,145.33,0.68]
[1718473533059,15.569,145.42,145.39,5.56]
[1718473535978,15.569,145.42,145.38,5.56]
[1718473537290,15.569,145.42,145.33,20.68]
[1718473537470,15.569,145.42,145.38,5.56]
[1718473539595,15.569,145.42,145.33,20.68]
[1718473539801,15.569,145.42,145.38,5.56]
[1718473546274,15.569,145.42,145.33,20.68]
[1718473546477,21.129,145.42,145.33,20.68]
[1718473546675,21.129,145.42,145.36,5.56]
[1718473546898,5.56,145.41,145.36,5.56]
[1718473547096,5.56,145.41,145.33,20.0]
[1718473547304,5.56,145.4,145.29,7.91572996]
[1718473547497,5.56,145.4,145.35,5.56]
[1718473548012,12.0892,145.41,145.35,5.56]
[1718473548213,12.0892,145.41,145.32,5.56]
[1718473548214,6.5292,145.41,145.32,5.56]
[1718473548421,6.5292,145.41,145.39,5.56]
[1718473554693,6.5292,145.41,145.38,5.56]
[1718473555913,6.5292,145.41,145.37,5.56]
[1718473557915,6.5292,145.41,145.33,0.34]
[1718473558090,6.5292,145.41,145.37,5.56]
[1718473558290,6.5292,145.41,145.29,29.04613974]
[1718473558486,6.5292,145.41,145.36,5.56]
[1718473559025,6.5292,145.41,145.32,22.24]
[1718473559026,14.6337,145.41,145.35,5.56]
[1718473560089,12.0892,145.41,145.35,5.56]
[1718473560511,6.5292,145.41,145.36,5.56]
[1718473562719,6.5292,145.41,145.32,22.24]
[1718473563020,6.5292,145.41,145.33,0.51]
[1718473567221,6.5292,145.41,145.36,5.56]
[1718473567607,8.1047,145.4,145.31,0.17]
[1718473567805,2.5447,145.4,145.35,5.56]
[1718473567999,2.5447,145.4,145.28,28.91835681]
[1718473568000,5.0909,145.36,145.25,27.517178]
[1718473568200,20.8325,145.36,145.3,5.56]
[1718473568424,13.1963,145.36,145.3,5.56]
[1718473568720,8.1054,145.36,145.3,5.56]
[1718473568928,5.56,145.36,145.3,5.56]
[1718473571123,5.56,145.36,145.31,5.56]
[1718473571332,5.56,145.36,145.25,27.6906211]
[1718473571333,13.1962,145.36,145.25,22.24]
[1718473571527,15.3568,145.34,145.26,20.0]
[1718473571735,15.3568,145.34,145.29,5.56]
[1718473572310,20.9168,145.34,145.29,5.56]
[1718473572932,20.9168,145.34,145.26,20.0]
[1718473573149,20.9168,145.34,145.29,5.56]
[1718473574232,15.3568,145.34,145.29,5.56]
[1718473574915,15.3568,145.34,145.3,5.56]
[1718473575347,15.3568,145.34,145.29,5.56]
[1718473576223,15.3568,145.34,145.25,0.51]
[1718473576542,20.9168,145.34,145.28,5.56]
[1718473576722,20.9168,145.34,145.25,0.34]
[1718473576925,20.9168,145.34,145.28,5.56]
[1718473579930,20.9168,145.34,145.29,5.56]
[1718473584717,15.3568,145.34,145.29,5.56]
[1718473585041,15.3568,145.34,145.3,5.56]
[1718473586113,15.3568,145.34,145.32,5.56]
[1718473586848,15.3568,145.34,145.26,15.5694]
[1718473587015,15.3568,145.34,145.32,5.56]
[1718473587650,15.3568,145.34,145.31,5.56]
[1718473590529,15.3568,145.34,145.27,0.51]
[1718473590731,15.3568,145.34,145.31,5.56]
[1718473591332,15.3568,145.34,145.27,0.51]
[1718473591333,15.3568,145.34,145.3,5.56]
[1718473593850,15.3568,145.34,145.25,22.24]
[1718473594035,15.3568,145.34,145.3,5.56]
[1718473594642,15.3568,145.34,145.29,5.56]
[1718473597250,15.3568,145.34,145.26,0.34]
[1718473597461,23.4625,145.34,145.24,0.34]
[1718473597674,5.56,145.33,145.28,5.56]
[1718473597853,5.56,145.33,145.23,0.17]
[1718473598051,5.56,145.33,145.27,5.56]
[1718473600690,6.2647,145.32,145.27,5.56]
[1718473601186,15.5366,145.31,145.19,27.01525571]
[1718473601349,15.5366,145.31,145.25,5.56]
[1718473601350,21.2666,145.31,145.25,5.56]
[1718473602949,21.2666,145.31,145.2,0.17]
[1718473603149,21.2666,145.31,145.25,5.56]
[1718473603382,21.2666,145.31,145.26,5.56]
[1718473603842,15.7066,145.31,145.26,5.56]
[1718473606591,18.2528,145.31,145.26,5.56]
[1718473607596,15.5366,145.31,145.26,5.56]
[1718473607755,15.5366,145.31,145.27,5.56]
[1718473608668,18.0828,145.31,145.27,5.56]
[1718473609067,15.5366,145.31,145.27,5.56]
[1718473609676,18.0828,145.31,145.27,5.56]
[1718473611398,15.5366,145.31,145.27,5.56]
[1718473611582,18.0828,145.31,145.27,5.56]
[1718473612700,23.1753,145.31,145.27,5.56]
[1718473613095,18.0828,145.31,145.27,5.56]
[1718473613818,23.1754,145.31,145.27,5.56]
[1718473614301,30.8142,145.31,145.2,0.68]
[1718473614602,40.9993,145.31,145.26,5.56]
[1718473615106,23.1754,145.31,145.26,5.56]
[1718473615296,18.0828,145.31,145.26,5.56]
[1718473615496,18.0828,145.31,145.27,5.56]
[1718473615691,23.1753,145.31,145.27,5.56]
[1718473616084,30.8141,145.31,145.27,5.56]
[1718473616284,2.5464,145.3,145.27,5.56]
[1718473616571,38.453,145.31,145.2,20.68]
[1718473616785,2.5464,145.3,145.26,5.56]
[1718473616982,40.9994,145.31,145.26,5.56]
[1718473617204,23.1755,145.31,145.26,5.56]
[1718473617700,30.8143,145.31,145.2,20.68]
[1718473617878,23.1755,145.31,145.26,5.56]
[1718473618501,30.8143,145.31,145.26,5.56]
[1718473618801,38.453,145.31,145.26,5.56]
[1718473619169,2.5464,145.3,145.26,5.56]
[1718473619376,2.5464,145.3,145.2,20.68]
[1718473619684,40.9994,145.31,145.26,5.56]
[1718473620206,33.3606,145.31,145.26,5.56]
[1718473620511,2.5464,145.3,145.26,5.56]
[1718473621111,40.9997,145.31,145.26,5.56]
[1718473622003,23.1755,145.31,145.26,5.56]
[1718473622208,18.083,145.31,145.27,5.56]
[1718473622580,30.8144,145.31,145.27,5.56]
[1718473622900,23.1754,145.31,145.27,5.56]
[1718473623296,23.1754,145.31,145.2,20.68]
[1718473623497,23.1754,145.31,145.27,5.56]
[1718473624095,18.0829,145.31,145.27,5.56]
[1718473625917,23.1754,145.31,145.26,5.56]
[1718473626423,7.6398,145.29,145.2,20.0]
[1718473626708,7.6398,145.29,145.24,5.56]
[1718473626709,15.2797,145.29,145.24,5.56]
[1718473627109,2.5466,145.29,145.24,5.56]
[1718473627532,2.5466,145.29,145.25,5.56]
[1718473627713,13.1996,145.3,145.25,5.56]
[1718473628291,13.1996,145.3,145.2,20.0]
[1718473628496,13.1996,145.3,145.25,5.56]
[1718473630112,8.1065,145.3,145.25,5.56]
[1718473630829,28.9445,145.29,145.2,20.0]
[1718473631013,31.4911,145.29,145.24,5.56]
[1718473631432,28.9445,145.29,145.24,5.56]
[1718473631815,31.4911,145.29,145.24,5.56]
[1718473632006,28.9445,145.29,145.24,5.56]
[1718473634142,23.2145,145.29,145.26,5.56]
[1718473634315,23.2145,145.29,145.2,0.17]
[1718473634316,0.17,145.28,145.18,27.87099832]
[1718473634516,0.17,145.28,145.24,5.56]
[1718473634714,0.17,145.28,145.18,0.17]
[1718473634919,0.17,145.28,145.23,5.56]
[1718473636031,28.7745,145.29,145.23,5.56]
[1718473637046,23.2145,145.29,145.23,5.56]
[1718473637217,28.7745,145.29,145.23,5.56]
[1718473638343,0.17,145.28,145.18,22.24]
[1718473638523,8.7868,145.28,145.22,5.56]
[1718473638724,13.8804,145.28,145.18,22.24]
[1718473638945,13.8804,145.28,145.22,5.56]
[1718473639321,8.7868,145.28,145.22,5.56]
[1718473640752,6.24,145.28,145.22,5.56]
[1718473641046,5.73,145.26,145.15,20.76099109]
[1718473641348,5.73,145.26,145.2,5.56]
[1718473643658,7.8131,145.23,145.13,0.5]
[1718473643975,22.2252,145.22,145.16,5.56]
[1718473644435,16.6652,145.22,145.16,5.56]
[1718473644633,5.56,145.21,145.16,5.56]
[1718473645063,22.2252,145.22,145.16,5.56]
[1718473646837,16.6652,145.22,145.17,5.56]
[1718473648051,22.2252,145.22,145.17,5.56]
[1718473649042,16.6652,145.22,145.17,5.56]
[1718473649242,22.2252,145.22,145.17,5.56]
[1718473649448,16.6652,145.22,145.17,5.56]
[1718473650171,22.2252,145.22,145.17,5.56]
[1718473650680,22.2252,145.22,145.13,0.5]
[1718473650985,22.2252,145.22,145.17,5.56]
[1718473653085,24.773,145.22,145.13,0.5]
[1718473653292,40.0608,145.22,145.13,0.5]
[1718473653511,25.4823,145.2,145.13,0.5]
[1718473653793,8.1082,145.2,145.13,0.5]
[1718473653968,8.1082,145.2,145.14,5.56]
[1718473654471,5.56,145.2,145.14,5.56]
[1718473654675,8.1082,145.2,145.14,5.56]
[1718473655676,5.56,145.2,145.14,5.56]
[1718473656372,5.56,145.2,145.13,0.5]
[1718473656585,5.56,145.2,145.14,5.56]
[1718473656762,5.56,145.2,145.13,0.5]
[1718473656962,5.56,145.2,145.14,5.56]
[1718473658096,0.17,145.19,145.14,5.56]
[1718473658299,0.17,145.2,145.14,5.56]
[1718473658504,5.9,145.2,145.14,5.56]
[1718473659606,5.56,145.2,145.14,5.56]
[1718473660001,5.56,145.2,145.13,0.5]
[1718473660587,8.1082,145.2,145.13,0.5]
[1718473662205,22.9806,145.17,145.13,0.5]
[1718473662413,22.9806,145.17,145.13,6.06]
[1718473662584,22.9806,145.17,145.13,0.5]
[1718473662905,22.9806,145.17,145.13,6.06]
[1718473663588,22.9806,145.17,145.14,45.0]
[1718473666091,0.17,145.16,145.13,0.5]
[1718473666324,2.5491,145.15,145.13,0.5]
[1718473666485,16.096,145.16,145.13,0.5]
[1718473666486,31.5598,145.16,145.13,0.5]
[1718473666907,13.7169,145.16,145.13,0.5]
[1718473667123,8.619,145.16,145.13,0.5]
[1718473667320,16.0962,145.16,145.13,0.5]
[1718473667636,13.5469,145.16,145.13,0.5]
[1718473668918,30.6271,145.17,145.13,0.5]
[1718473669119,31.0894,145.17,145.13,0.5]
[1718473669290,0.17,145.16,145.13,0.5]
[1718473669497,2.549,145.15,145.13,0.5]
[1718473669696,2.5491,145.15,145.13,0.5]
[1718473669917,25.9996,145.16,145.13,0.5]
[1718473670422,2.549,145.15,145.13,0.5]
[1718473670933,2.8892,145.14,145.13,0.5]
[1718473671134,31.7324,145.14,145.13,0.5]
[1718473675909,0.68,145.14,145.13,0.5]
[1718473676236,6.07,145.14,145.13,0.5]
[1718473676411,8.6192,145.14,145.13,0.5]
[1718473677816,13.7177,145.14,145.13,0.5]
[1718473679860,21.3654,145.14,145.13,0.5]
[1718473680447,13.7177,145.14,145.13,0.5]
[1718473680736,28.5406,145.17,145.13,0.5]
[1718473681247,7.6467,145.16,145.13,0.5]
[1718473681455,15.2934,145.16,145.13,0.5]
[1718473681742,38.7357,145.17,145.13,0.5]
[1718473681743,54.0284,145.17,145.13,0.5]
[1718473681922,16.5252,145.17,145.13,0.5]
[1718473682125,7.6459,145.18,145.13,6.06]
[1718473682437,28.4956,145.19,145.13,6.06]
[1718473682647,22.9376,145.18,145.13,0.5]
[1718473682820,25.4862,145.18,145.13,6.06]
[1718473683023,7.6457,145.18,145.13,6.06]
[1718473683438,15.2914,145.18,145.13,6.06]
[1718473683946,25.4856,145.18,145.13,6.06]
[1718473684724,2.5487,145.17,145.13,6.06]
[1718473685353,25.4858,145.18,145.13,6.06]
[1718473686350,2.5486,145.18,145.13,6.06]
[1718473687144,7.6457,145.18,145.13,6.06]
[1718473688866,22.9362,145.19,145.13,6.06]
[1718473689162,7.6457,145.18,145.13,6.06]
[1718473689666,22.4386,145.21,145.13,6.06]
[1718473689841,7.9847,145.2,145.15,5.56]
[1718473690040,13.5447,145.2,145.15,5.56]
[1718473690252,7.8146,145.2,145.13,0.5]
[1718473690451,13.2046,145.2,145.13,0.5]
[1718473690758,20.8492,145.2,145.13,0.5]
[1718473690960,2.5484,145.19,145.13,0.5]
[1718473691528,22.934,145.2,145.13,0.5]
[1718473691733,7.6451,145.19,145.13,0.5]
[1718473691955,7.6451,145.19,145.15,5.56]
[1718473692154,15.2902,145.19,145.15,5.56]
[1718473692341,7.6451,145.19,145.14,5.56]
[1718473692546,31.0429,145.2,145.14,5.56]
[1718473692742,28.4946,145.2,145.13,0.5]
[1718473692946,2.5483,145.2,145.15,5.56]
[1718473693462,2.5482,145.2,145.13,0.5]
[1718473695071,2.5481,145.21,145.16,5.56]
[1718473695361,22.9313,145.22,145.17,5.56]
[1718473695658,2.548,145.21,145.17,5.56]
[1718473696162,5.0965,145.2,145.17,5.56]
[1718473696348,2.5484,145.19,145.16,5.56]
[1718473696663,2.5484,145.19,145.15,5.56]
[1718473697954,2.5483,145.19,145.15,5.56]
[1718473698153,25.4823,145.2,145.15,5.56]
[1718473698843,7.6448,145.2,145.15,5.56]
[1718473699067,7.6448,145.2,145.13,22.1729]
[1718473699268,7.6448,145.2,145.15,5.56]
[1718473699853,31.0414,145.21,145.15,5.56]
[1718473700153,31.0414,145.21,145.16,5.56]
[1718473700353,2.5482,145.2,145.16,5.56]
[1718473700538,25.4814,145.21,145.16,5.56]
[1718473700868,7.6444,145.21,145.17,5.56]
[1718473701072,15.2885,145.21,145.17,5.56]
[1718473701644,17.8338,145.23,145.17,5.56]
[1718473701859,2.5479,145.22,145.17,5.56]
[1718473702159,5.56,145.22,145.17,5.56]
[1718473702778,25.4792,145.22,145.17,5.56]
[1718473702967,2.548,145.21,145.17,5.56]
[1718473703453,7.644,145.21,145.17,5.56]
[1718473704687,2.548,145.21,145.17,5.56]
[1718473705057,31.0392,145.22,145.17,5.56]
[1718473705261,2.548,145.21,145.17,5.56]
[1718473705462,13.2038,145.22,145.17,5.56]
[1718473705667,7.6438,145.22,145.17,5.56]
[1718473706065,31.5477,145.23,145.17,5.56]
[1718473706281,2.5476,145.23,145.19,5.56]
[1718473706462,2.5477,145.23,145.19,5.56]
[1718473706667,7.6426,145.24,145.19,5.56]
[1718473706872,2.5477,145.23,145.19,5.56]
[1718473707855,15.2854,145.24,145.19,5.56]
[1718473708770,7.6426,145.24,145.19,5.56]
[1718473709165,2.5475,145.24,145.2,5.56]
[1718473709370,25.4741,145.25,145.2,5.56]
[1718473709880,25.4741,145.25,145.17,16.3765]
[1718473709881,13.201,145.27,145.22,5.56]
[1718473710085,7.641,145.27,145.22,5.56]
[1718473710286,16.6449,145.28,145.24,5.56]
[1718473710498,10.1857,145.31,145.24,5.56]
[1718473710678,20.8388,145.3,145.24,5.56]
[1718473710995,22.9165,145.31,145.26,5.56]
[1718473711476,2.5466,145.29,145.26,5.56]
[1718473711679,7.6398,145.29,145.25,5.56]
[1718473711876,2.5466,145.29,145.25,5.56]
[1718473713268,22.9183,145.3,145.25,5.56]
[1718473713470,2.5466,145.29,145.25,5.56]
[1718473713870,12.7316,145.31,145.25,5.56]
[1718473714177,12.7316,145.31,145.23,16.3765]
[1718473714178,2.5464,145.3,145.26,5.56]
[1718473715685,22.9168,145.31,145.26,5.56]
[1718473715894,2.5464,145.3,145.26,5.56]
[1718473716072,22.9168,145.31,145.26,5.56]
[1718473716270,15.2778,145.31,145.27,5.56]